Workbook

Sheet Calculatie
C3: Kandidaatnaam: | H3: korting op materiaal | P3: =ISERROR(I46) -> FALSE
C4: Kandidaatnummer: | H4: opslag voor materiaalverlies
H5: uurtarief arbeid
C6: Druk op start om te beginnen. | H6: btw materiaal
C7: productgroep: | H7: btw arbeidsloon
P8: productgroep | Q8: omschrijving
D9: materiaalomschrijving | F9: aantal | G9: prijs per stuk of meter | H9: totaal prijs materiaal | I9: arbeid | J9: totaal arbeid | P9: aardingsmateriaal
C10: 1 | G10: =IF(D10="","",VLOOKUP($D10,Producten!$B:$D,3,FALSE)) ->  | H10: =IF(D10="","",F10*G10) ->  | I10: =IF(D10="","",VLOOKUP($D10,Producten!$B:$F,4,FALSE)) ->  | J10: =IF(D10="","",I10*F10) ->  | P10: automaten
C11: 2 | G11: =IF(D11="","",VLOOKUP($D11,Producten!$B:$D,3,FALSE)) ->  | H11: =IF(D11="","",F11*G11) ->  | I11: =IF(D11="","",VLOOKUP($D11,Producten!$B:$F,4,FALSE)) ->  | J11: =IF(D11="","",I11*F11) ->  | P11: bevestigingsmaterialen
C12: 3 | G12: =IF(D12="","",VLOOKUP($D12,Producten!$B:$D,3,FALSE)) ->  | I12: =IF(D12="","",VLOOKUP($D12,Producten!$B:$F,4,FALSE)) ->  | P12: CEE-materiaal
C13: 4 | G13: =IF(D13="","",VLOOKUP($D13,Producten!$B:$D,3,FALSE)) ->  | I13: =IF(D13="","",VLOOKUP($D13,Producten!$B:$F,4,FALSE)) ->  | P13: diversen
C14: 5 | G14: =IF(D14="","",VLOOKUP($D14,Producten!$B:$D,3,FALSE)) ->  | I14: =IF(D14="","",VLOOKUP($D14,Producten!$B:$F,4,FALSE)) ->  | P14: dozen
C15: 6 | G15: =IF(D15="","",VLOOKUP($D15,Producten!$B:$D,3,FALSE)) ->  | I15: =IF(D15="","",VLOOKUP($D15,Producten!$B:$F,4,FALSE)) ->  | P15: draad en kabel
C16: 7 | G16: =IF(D16="","",VLOOKUP($D16,Producten!$B:$D,3,FALSE)) ->  | I16: =IF(D16="","",VLOOKUP($D16,Producten!$B:$F,4,FALSE)) ->  | P16: groepenkast
C17: 8 | G17: =IF(D17="","",VLOOKUP($D17,Producten!$B:$D,3,FALSE)) ->  | I17: =IF(D17="","",VLOOKUP($D17,Producten!$B:$F,4,FALSE)) ->  | P17: installatiebuis
C18: 9 | G18: =IF(D18="","",VLOOKUP($D18,Producten!$B:$D,3,FALSE)) ->  | I18: =IF(D18="","",VLOOKUP($D18,Producten!$B:$F,4,FALSE)) ->  | P18: kabelgoot
C19: 10 | G19: =IF(D19="","",VLOOKUP($D19,Producten!$B:$D,3,FALSE)) ->  | I19: =IF(D19="","",VLOOKUP($D19,Producten!$B:$F,4,FALSE)) ->  | P19: kunststofkasten
C20: 11 | G20: =IF(D20="","",VLOOKUP($D20,Producten!$B:$D,3,FALSE)) ->  | I20: =IF(D20="","",VLOOKUP($D20,Producten!$B:$F,4,FALSE)) ->  | P20: pakkingbussen en moeren
C21: 12 | G21: =IF(D21="","",VLOOKUP($D21,Producten!$B:$D,3,FALSE)) ->  | I21: =IF(D21="","",VLOOKUP($D21,Producten!$B:$F,4,FALSE)) ->  | P21: plattebuissysteem 25 mm
C22: 13 | G22: =IF(D22="","",VLOOKUP($D22,Producten!$B:$D,3,FALSE)) ->  | I22: =IF(D22="","",VLOOKUP($D22,Producten!$B:$F,4,FALSE)) ->  | P22: plintsysteem 70 mm
C23: 14 | G23: =IF(D23="","",VLOOKUP($D23,Producten!$B:$D,3,FALSE)) ->  | I23: =IF(D23="","",VLOOKUP($D23,Producten!$B:$F,4,FALSE)) ->  | P23: relais- en magneetschakelaars
C24: 15 | G24: =IF(D24="","",VLOOKUP($D24,Producten!$B:$D,3,FALSE)) ->  | I24: =IF(D24="","",VLOOKUP($D24,Producten!$B:$F,4,FALSE)) ->  | P24: rijgklemmen
C25: 16 | G25: =IF(D25="","",VLOOKUP($D25,Producten!$B:$D,3,FALSE)) ->  | I25: =IF(D25="","",VLOOKUP($D25,Producten!$B:$F,4,FALSE)) ->  | P25: schakelmateriaal inbouw
C26: 17 | G26: =IF(D26="","",VLOOKUP($D26,Producten!$B:$D,3,FALSE)) ->  | I26: =IF(D26="","",VLOOKUP($D26,Producten!$B:$F,4,FALSE)) ->  | P26: schakelmateriaal opbouw
C27: 18 | G27: =IF(D27="","",VLOOKUP($D27,Producten!$B:$D,3,FALSE)) ->  | I27: =IF(D27="","",VLOOKUP($D27,Producten!$B:$F,4,FALSE)) ->  | P27: schakelmateriaal spatwaterdicht
C28: 19 | G28: =IF(D28="","",VLOOKUP($D28,Producten!$B:$D,3,FALSE)) ->  | I28: =IF(D28="","",VLOOKUP($D28,Producten!$B:$F,4,FALSE)) ->  | P28: sensoren
C29: 20 | G29: =IF(D29="","",VLOOKUP($D29,Producten!$B:$D,3,FALSE)) ->  | I29: =IF(D29="","",VLOOKUP($D29,Producten!$B:$F,4,FALSE)) ->  | P29: signaalkasten/signaalgevers
C30: 21 | G30: =IF(D30="","",VLOOKUP($D30,Producten!$B:$D,3,FALSE)) ->  | I30: =IF(D30="","",VLOOKUP($D30,Producten!$B:$F,4,FALSE)) ->  | P30: verlichting en armaturen
C31: 22 | G31: =IF(D31="","",VLOOKUP($D31,Producten!$B:$D,3,FALSE)) ->  | I31: =IF(D31="","",VLOOKUP($D31,Producten!$B:$F,4,FALSE)) -> 
C32: 23 | G32: =IF(D32="","",VLOOKUP($D32,Producten!$B:$D,3,FALSE)) ->  | I32: =IF(D32="","",VLOOKUP($D32,Producten!$B:$F,4,FALSE)) -> 
C33: 24 | G33: =IF(D33="","",VLOOKUP($D33,Producten!$B:$D,3,FALSE)) ->  | I33: =IF(D33="","",VLOOKUP($D33,Producten!$B:$F,4,FALSE)) -> 
C34: 25 | G34: =IF(D34="","",VLOOKUP($D34,Producten!$B:$D,3,FALSE)) ->  | I34: =IF(D34="","",VLOOKUP($D34,Producten!$B:$F,4,FALSE)) -> 
C35: 26 | G35: =IF(D35="","",VLOOKUP($D35,Producten!$B:$D,3,FALSE)) ->  | I35: =IF(D35="","",VLOOKUP($D35,Producten!$B:$F,4,FALSE)) -> 
C36: 27 | G36: =IF(D36="","",VLOOKUP($D36,Producten!$B:$D,3,FALSE)) ->  | I36: =IF(D36="","",VLOOKUP($D36,Producten!$B:$F,4,FALSE)) -> 
C37: 28 | G37: =IF(D37="","",VLOOKUP($D37,Producten!$B:$D,3,FALSE)) ->  | I37: =IF(D37="","",VLOOKUP($D37,Producten!$B:$F,4,FALSE)) -> 
C38: 29 | G38: =IF(D38="","",VLOOKUP($D38,Producten!$B:$D,3,FALSE)) ->  | I38: =IF(D38="","",VLOOKUP($D38,Producten!$B:$F,4,FALSE)) -> 
C39: 30 | G39: =IF(D39="","",VLOOKUP($D39,Producten!$B:$D,3,FALSE)) ->  | I39: =IF(D39="","",VLOOKUP($D39,Producten!$B:$F,4,FALSE)) -> 
C40: 31 | G40: =IF(D40="","",VLOOKUP($D40,Producten!$B:$D,3,FALSE)) ->  | I40: =IF(D40="","",VLOOKUP($D40,Producten!$B:$F,4,FALSE)) -> 
C41: 32 | G41: =IF(D41="","",VLOOKUP($D41,Producten!$B:$D,3,FALSE)) ->  | I41: =IF(D41="","",VLOOKUP($D41,Producten!$B:$F,4,FALSE)) -> 
C42: 33 | G42: =IF(D42="","",VLOOKUP($D42,Producten!$B:$D,3,FALSE)) ->  | I42: =IF(D42="","",VLOOKUP($D42,Producten!$B:$F,4,FALSE)) -> 
C43: 34 | G43: =IF(D43="","",VLOOKUP($D43,Producten!$B:$D,3,FALSE)) ->  | I43: =IF(D43="","",VLOOKUP($D43,Producten!$B:$F,4,FALSE)) -> 
C44: 35 | G44: =IF(D44="","",VLOOKUP($D44,Producten!$B:$D,3,FALSE)) ->  | I44: =IF(D44="","",VLOOKUP($D44,Producten!$B:$F,4,FALSE)) -> 
H46: netto materiaalkosten | I46: =SUM(H10:H44) -> 0
H47: korting op materiaal | I47: =I46*$J$3 -> 0
H48: opslag voor materiaalverlies | I48: =I46*$J$4 -> 0
H49: btw materiaal | I49: =$J$6*(I46-I47+I48) -> 0
H50: materiaalkosten inclusief btw | J50: =I46-I47+I48+I49 -> 0
H52: aantal uren arbeid | I52: =SUM(J10:J44) -> 0.00
H53: arbeidsloon exclusief btw | I53: =I52*$J$5 -> 0
H54: btw arbeidsloon | I54: =$J$7*I53 -> 0
H55: arbeid inclusief btw | J55: =I53+I54 -> 0
H57: totale kosten installatie inclusief btw | J57: =J50+J55 -> 0

Sheet Producten
A1: Productgroep | B1: omschrijving | C1: artikelnr | D1: prijs in € | E1: arbeidsfactor | F1: korting % | G1: uitvoering | H1: leverancier
A2: aardingsmateriaal | B2: aardmat 1 m² | C2: 10,010,100 | D2: 17.58 | E2: 0.200 | F2: 35% | H2: Install-Tech
A3: aardingsmateriaal | B3: badkameraardingsrail (CAP), vernikkeld | C3: =C2+3 -> 10,010,103 | D3: 4.12 | E3: 0.200 | F3: 35% | H3: Install-Tech
A4: aardingsmateriaal | B4: BC 25 mm² | C4: 10,010,106 | D4: 4.23 | E4: 0.300 | F4: 35% | H4: Install-Tech
A5: aardingsmateriaal | B5: BC 4 mm² | C5: 10,010,109 | D5: 0.68 | E5: 0.200 | F5: 35% | H5: Install-Tech
A6: aardingsmateriaal | B6: BC 6 mm² | C6: 10,010,112 | D6: 1.05 | E6: 0.200 | F6: 35% | H6: Install-Tech
A7: aardingsmateriaal | B7: buisklem 10 - 12 mm | C7: 10,010,115 | D7: 3.02 | E7: 0.200 | F7: 35% | H7: Install-Tech
A8: aardingsmateriaal | B8: buisklem 13 - 15 mm | C8: 10,010,118 | D8: 3.23 | E8: 0.200 | F8: 35% | H8: Install-Tech
A9: aardingsmateriaal | B9: buisklem 16 - 17 mm | C9: 10,010,121 | D9: 3.39 | E9: 0.200 | F9: 35% | H9: Install-Tech
A10: aardingsmateriaal | B10: buisklem 21 - 22 mm | C10: 10,010,124 | D10: 3.75 | E10: 0.200 | F10: 35% | H10: Install-Tech
A11: aardingsmateriaal | B11: hoofdaardrail | C11: 10,010,127 | D11: 7.20 | E11: 0.200 | F11: 35% | H11: Install-Tech
A12: aardingsmateriaal | B12: radiatorklem | C12: 10,010,130 | D12: 2.83 | E12: 0.200 | F12: 35% | H12: Install-Tech
A13: automaten | B13: aardlekautomaat 16 A 2-polig, 30 mA | C13: 10,020,100 | D13: 128.87 | E13: 0.250 | F13: 35% | H13: Install-Tech
A14: automaten | B14: aardlekautomaat 40 A 4-polig, 30 mA | C14: =C13+3 -> 10,020,103 | D14: 192.72 | E14: 0.250 | F14: 35% | H14: Install-Tech
A15: automaten | B15: aardlekschakelaar 30 mA, 2-polig | C15: 10,020,106 | D15: 126.00 | E15: 0.250 | F15: 35% | H15: Install-Tech
A16: automaten | B16: aardlekschakelaar 30 mA, 4-polig | C16: 10,020,109 | D16: 172.00 | E16: 0.250 | F16: 35% | H16: Install-Tech
A17: automaten | B17: fornuisgroep 1-fase 16 A | C17: 10,020,112 | D17: 57.71 | E17: 0.200 | F17: 35% | H17: Install-Tech
A18: automaten | B18: installatie-automaat 1 polig + N, 10 A | C18: 10,020,115 | D18: 35.70 | E18: 0.200 | F18: 35% | H18: Install-Tech
A19: automaten | B19: installatie-automaat 1 polig + N, 16 A | C19: 10,020,118 | D19: 33.80 | E19: 0.200 | F19: 35% | H19: Install-Tech
A20: automaten | B20: installatie-automaat 1 polig + N, 20 A | C20: 10,020,121 | D20: 35.70 | E20: 0.200 | F20: 35% | H20: Install-Tech
A21: bevestigingsmaterialen | B21: beugel, staal, 16 mm | C21: 10,030,100 | D21: 0.04 | E21: 0.000 | F21: 35% | H21: Install-Tech
A22: bevestigingsmaterialen | B22: beugel, staal, 19 mm | C22: =C21+3 -> 10,030,103 | D22: 0.05 | E22: 0.000 | F22: 35% | H22: Install-Tech
A23: bevestigingsmaterialen | B23: bevestigingsmaterialen (set) | C23: 10,030,101 | D23: 8.46 | E23: 0.000 | F23: 35% | H23: Install-Tech
A24: bevestigingsmaterialen | B24: kabelzadel 5...14 mm | C24: =C23+3 -> 10,030,104 | D24: 0.33 | E24: 0.000 | F24: 35% | H24: Install-Tech
A25: bevestigingsmaterialen | B25: kabelzadel 6...17 mm | C25: 10,030,107 | D25: 0.26 | E25: 0.000 | F25: 35% | H25: Install-Tech
A26: bevestigingsmaterialen | B26: kabelzadel 15…25 mm | C26: 10,030,110 | D26: 1.07 | E26: 0.000 | F26: 35% | H26: Install-Tech
A27: bevestigingsmaterialen | B27: klembeugel 16...19 mm | C27: 10,030,113 | D27: 0.36 | E27: 0.000 | F27: 35% | H27: Install-Tech
A28: bevestigingsmaterialen | B28: klembeugel 19… 22 mm | C28: 10,030,116 | D28: 0.39 | E28: 0.000 | F28: 35% | H28: Install-Tech
A29: bevestigingsmaterialen | B29: metaalschroef clinderkop gegalv. M3 x 10 | C29: 10,030,119 | D29: 0.02 | E29: 0.000 | F29: 35% | H29: Install-Tech
A30: bevestigingsmaterialen | B30: metaalschroef clinderkop gegalv. M3 x 12 | C30: 10,030,122 | D30: 0.02 | E30: 0.000 | F30: 35% | H30: Install-Tech
A31: bevestigingsmaterialen | B31: metaalschroef clinderkop gegalv. M3 x 16 | C31: 10,030,125 | D31: 0.01 | E31: 0.000 | F31: 35% | H31: Install-Tech
A32: bevestigingsmaterialen | B32: metaalschroef clinderkop gegalv. M3 x 20 | C32: 10,030,128 | D32: 0.02 | E32: 0.000 | F32: 35% | H32: Install-Tech
A33: bevestigingsmaterialen | B33: metaalschroef clinderkop gegalv. M3 x 25 | C33: 10,030,131 | D33: 0.02 | E33: 0.000 | F33: 35% | H33: Install-Tech
A34: bevestigingsmaterialen | B34: metaalschroef clinderkop gegalv. M3 x 30 | C34: 10,030,134 | D34: 0.03 | E34: 0.000 | F34: 35% | H34: Install-Tech
A35: bevestigingsmaterialen | B35: metaalschroef clinderkop gegalv. M4 x 10 | C35: 10,030,137 | D35: 0.02 | E35: 0.000 | F35: 35% | H35: Install-Tech
A36: bevestigingsmaterialen | B36: metaalschroef clinderkop gegalv. M4 x 12 | C36: 10,030,140 | D36: 0.02 | E36: 0.000 | F36: 35% | H36: Install-Tech
A37: bevestigingsmaterialen | B37: metaalschroef clinderkop gegalv. M4 x 16 | C37: 10,030,143 | D37: 0.03 | E37: 0.000 | F37: 35% | H37: Install-Tech
A38: bevestigingsmaterialen | B38: metaalschroef clinderkop gegalv. M4 x 20 | C38: 10,030,146 | D38: 0.03 | E38: 0.000 | F38: 35% | H38: Install-Tech
A39: bevestigingsmaterialen | B39: metaalschroef clinderkop gegalv. M4 x 25 | C39: 10,030,149 | D39: 0.03 | E39: 0.000 | F39: 35% | H39: Install-Tech
A40: bevestigingsmaterialen | B40: metaalschroef clinderkop gegalv. M4 x 30 | C40: 10,030,152 | D40: 0.04 | E40: 0.000 | F40: 35% | H40: Install-Tech
A41: bevestigingsmaterialen | B41: metaalschroef platkop gegalv. M3 x 10 | C41: 10,030,155 | D41: 0.02 | E41: 0.000 | F41: 35% | H41: Install-Tech
A42: bevestigingsmaterialen | B42: metaalschroef platkop gegalv. M3 x 12 | C42: 10,030,158 | D42: 0.02 | E42: 0.000 | F42: 35% | H42: Install-Tech
A43: bevestigingsmaterialen | B43: metaalschroef platkop gegalv. M3 x 16 | C43: 10,030,161 | D43: 0.02 | E43: 0.000 | F43: 35% | H43: Install-Tech
A44: bevestigingsmaterialen | B44: metaalschroef platkop gegalv. M3 x 20 | C44: 10,030,164 | D44: 0.02 | E44: 0.000 | F44: 35% | H44: Install-Tech
A45: bevestigingsmaterialen | B45: metaalschroef platkop gegalv. M3 x 25 | C45: 10,030,167 | D45: 0.03 | E45: 0.000 | F45: 35% | H45: Install-Tech
A46: bevestigingsmaterialen | B46: metaalschroef platkop gegalv. M3 x 30 | C46: 10,030,170 | D46: 0.03 | E46: 0.000 | F46: 35% | H46: Install-Tech
A47: bevestigingsmaterialen | B47: rijg-drukzadel 6...13 mm | C47: 10,030,173 | D47: 0.32 | E47: 0.000 | F47: 35% | H47: Install-Tech
A48: bevestigingsmaterialen | B48: rijg-drukzadel 12…20 mm | C48: 10,030,176 | D48: 0.44 | E48: 0.000 | F48: 35% | H48: Install-Tech
A49: bevestigingsmaterialen | B49: rijg-drukzadel 16… 34 mm | C49: 10,030,179 | D49: 0.57 | E49: 0.000 | F49: 35% | H49: Install-Tech
A50: bevestigingsmaterialen | B50: spaanplaatschroef 3,5 x 13 mm, bolkop | C50: 10,030,182 | D50: 0.01 | E50: 0.000 | F50: 35% | H50: Install-Tech
A51: bevestigingsmaterialen | B51: spaanplaatschroef 3,5 x 20 mm, bolkop | C51: 10,030,185 | D51: 0.01 | E51: 0.000 | F51: 35% | H51: Install-Tech
A52: bevestigingsmaterialen | B52: spaanplaatschroef 3,5 x 25 mm, bolkop | C52: 10,030,188 | D52: 0.01 | E52: 0.000 | F52: 35% | H52: Install-Tech
A53: bevestigingsmaterialen | B53: spaanplaatschroef 4 x 30 mm, bolkop | C53: 10,030,191 | D53: 0.02 | E53: 0.000 | F53: 35% | H53: Install-Tech
A54: bevestigingsmaterialen | B54: spaanplaatschroef 4 x 40 mm, bolkop | C54: 10,030,194 | D54: 0.02 | E54: 0.000 | F54: 35% | H54: Install-Tech
A55: bevestigingsmaterialen | B55: spijkerclip 16…19 mm | C55: 10,030,197 | D55: 0.13 | E55: 0.000 | F55: 35% | H55: Install-Tech
A56: bevestigingsmaterialen | B56: spijkerclip 19…22 mm | C56: 10,030,200 | D56: 0.18 | E56: 0.000 | F56: 35% | H56: Install-Tech
A57: CEE-materiaal | B57: CEE-contactstop 1p + N + PE 230 V 16 A IP44 | C57: 10,040,100 | D57: 3.60 | E57: 0.200 | F57: 35% | H57: Install-Tech
A58: CEE-materiaal | B58: CEE-contactstop 3p + N + PE 400 V 16 A IP44 | C58: =C57+3 -> 10,040,103 | D58: 6.85 | E58: 0.260 | F58: 35% | H58: Install-Tech
A59: CEE-materiaal | B59: CEE-contactstop 3p + PE 400 V 16 A IP44 | C59: 10,040,106 | D59: 4.45 | E59: 0.220 | F59: 35% | H59: Install-Tech
A60: CEE-materiaal | B60: CEE-inbouwcontactdoos 1p + N + PE 230 V 16 A IP44 | C60: 10,040,109 | D60: 6.87 | E60: 0.330 | F60: 35% | H60: Install-Tech
A61: CEE-materiaal | B61: CEE-inbouwcontactdoos 3p + N + PE 400 V 16 A IP44 | C61: 10,040,112 | D61: 11.56 | E61: 0.370 | F61: 35% | H61: Install-Tech
A62: CEE-materiaal | B62: CEE-inbouwcontactdoos 3p + PE 400 V 16 A IP44 | C62: 10,040,115 | D62: 8.67 | E62: 0.350 | F62: 35% | H62: Install-Tech
A63: CEE-materiaal | B63: CEE-toestelcontactdoos 1p + N + PE 230 V 16 A opbouw IP44 | C63: 10,040,118 | D63: 8.80 | E63: 0.330 | F63: 35% | H63: Install-Tech
A64: CEE-materiaal | B64: CEE-toestelcontactdoos 3p + N + PE 400 V 16 A opbouw IP44 | C64: 10,040,121 | D64: 13.60 | E64: 0.370 | F64: 35% | H64: Install-Tech
A65: CEE-materiaal | B65: CEE-toestelcontactdoos 3p + PE 400 V 16 A opbouw IP44 | C65: 10,040,124 | D65: 11.25 | E65: 0.350 | F65: 35% | H65: Install-Tech
A66: CEE-materiaal | B66: CEE-wandcontactdoos 1p + N + PE 230 V 16 A opbouw IP44 | C66: 10,040,127 | D66: 10.56 | E66: 0.200 | F66: 35% | H66: Install-Tech
A67: CEE-materiaal | B67: CEE-wandcontactdoos 3p + N + PE 400 V 16 A opbouw IP44 | C67: 10,040,130 | D67: 15.51 | E67: 0.220 | F67: 35% | H67: Install-Tech
A68: CEE-materiaal | B68: CEE-wandcontactdoos 3p + PE 400 V 16 A opbouw IP44 | C68: 10,040,133 | D68: 12.72 | E68: 0.220 | F68: 35% | H68: Install-Tech
A69: diversen | B69: adereindhuls 0,5 mm² | C69: 10,050,100 | D69: 0.02 | E69: 0.005 | F69: 35% | H69: Install-Tech
A70: diversen | B70: adereindhuls 0,75 mm² | C70: =C69+3 -> 10,050,103 | D70: 0.02 | E70: 0.005 | F70: 35% | H70: Install-Tech
A71: diversen | B71: adereindhuls 1 mm² | C71: =C70+3 -> 10,050,106 | D71: 0.02 | E71: 0.005 | F71: 35% | H71: Install-Tech
A72: diversen | B72: adereindhuls 1,5 mm² | C72: =C71+3 -> 10,050,109 | D72: 0.02 | E72: 0.005 | F72: 35% | H72: Install-Tech
A73: diversen | B73: adereindhuls 2,5 mm² | C73: =C72+3 -> 10,050,112 | D73: 0.02 | E73: 0.005 | F73: 35% | H73: Install-Tech
A74: diversen | B74: adereindhuls 4 mm² | C74: =C73+3 -> 10,050,115 | D74: 0.03 | E74: 0.005 | F74: 35% | H74: Install-Tech
A75: diversen | B75: adereindhulzen (set) | C75: =C74+1 -> 10,050,116 | D75: 3.26 | E75: 0.000 | F75: 35% | H75: Install-Tech
A76: diversen | B76: draailasdop, goliath, tot 24 mm² | C76: =C75+3 -> 10,050,119 | D76: 0.47 | E76: 0.100 | F76: 35% | H76: Install-Tech
A77: diversen | B77: draailasdop, universeel, tot 12,5 mm² | C77: =C76+3 -> 10,050,122 | D77: 0.21 | E77: 0.060 | F77: 35% | H77: Install-Tech
A78: diversen | B78: draailasdoppen, universeel (set) | C78: =C77+3 -> 10,050,125 | D78: 4.46 | E78: 0.000 | F78: 35% | H78: Install-Tech
A79: diversen | B79: insteeklasklem (2p) | C79: =C77+3 -> 10,050,125 | D79: 0.11 | E79: 0.060 | F79: 35% | H79: Install-Tech
A80: diversen | B80: insteeklasklem (3p) | C80: =C79+3 -> 10,050,128 | D80: 0.12 | E80: 0.060 | F80: 35% | H80: Install-Tech
A81: diversen | B81: insteeklasklem (4p) | C81: 10,050,131 | D81: 0.14 | E81: 0.060 | F81: 35% | H81: Install-Tech
A82: diversen | B82: insteeklasklem (5p) | C82: 10,050,134 | D82: 0.15 | E82: 0.060 | F82: 35% | H82: Install-Tech
A83: diversen | B83: isolatietape 4,5 m, blauw | C83: 10,050,137 | D83: 1.29 | E83: 0.000 | F83: 35% | H83: Install-Tech
A84: diversen | B84: isolatietape 4,5 m, bruin | C84: 10,050,140 | D84: 1.29 | E84: 0.000 | F84: 35% | H84: Install-Tech
A85: diversen | B85: isolatietape 4,5 m, geel/groen | C85: 10,050,143 | D85: 1.29 | E85: 0.000 | F85: 35% | H85: Install-Tech
A86: diversen | B86: isolatietape 4,5 m, zwart | C86: 10,050,146 | D86: 1.29 | E86: 0.000 | F86: 35% | H86: Install-Tech
A87: diversen | B87: kroonklemmenstrook 0,75 - 1,5 mm², 12 polig | C87: 10,050,149 | D87: 1.53 | E87: 0.020 | F87: 35% | H87: Install-Tech
A88: diversen | B88: kroonklemmenstrook 2,5 - 4,0 mm², 12 polig | C88: 10,050,152 | D88: 1.84 | E88: 0.000 | F88: 35% | H88: Install-Tech
A89: diversen | B89: kroonklemmenstrook 4,0 - 10,0 mm², 12 polig | C89: 10,050,155 | D89: 4.49 | E89: 0.000 | F89: 35% | H89: Install-Tech
A90: diversen | B90: kroonklemmenstrook, deelbaar 1,5 - 2,5 mm², 12 polig | C90: 10,050,158 | D90: 4.39 | E90: 0.120 | F90: 35% | H90: Install-Tech
A91: diversen | B91: kroonklemmenstrook, deelbaar 1,5 - 2,5 mm², 2 polig | C91: 10,050,161 | D91: 0.74 | E91: 0.020 | F91: 35% | H91: Install-Tech
A92: diversen | B92: kroonklemmenstrook, deelbaar 1,5 - 2,5 mm², 3 polig | C92: 10,050,164 | D92: 1.10 | E92: 0.030 | F92: 35% | H92: Install-Tech
A93: diversen | B93: kroonklemmenstrook, deelbaar 1,5 - 2,5 mm², 4 polig | C93: 10,050,167 | D93: 1.47 | E93: 0.040 | F93: 35% | H93: Install-Tech
A94: diversen | B94: lasklemmen (set) | C94: 10,050,170 | D94: 3.12 | E94: 1.000 | F94: 135% | H94: Install-Tech
A95: diversen | B95: verbindingsklem 2-draads met hendels | C95: =C243+3 -> 10,140,121 | D95: 0.21 | E95: 0.060 | F95: 35% | H95: Install-Tech
A96: diversen | B96: verbindingsklem 3-draads met hendels | C96: =C95+3 -> 10,140,124 | D96: 0.28 | E96: 0.060 | F96: 35% | H96: Install-Tech
A97: diversen | B97: verbindingsklem 5-draads met hendels | C97: =C96+3 -> 10,140,127 | D97: 0.46 | E97: 0.060 | F97: 35% | H97: Install-Tech
A98: dozen | B98: centraaldoos 8 spruiten, gelijke hoogte, 16 mm | C98: 10,060,100 | D98: 2.39 | E98: 0.150 | F98: 35% | H98: Install-Tech
A99: dozen | B99: centraaldoos 8 spruiten, ongelijke hoogte, 16 mm | C99: =C98+3 -> 10,060,103 | D99: 2.39 | E99: 0.150 | F99: 35% | H99: Install-Tech
A100: dozen | B100: centraaldoos met deksel 8 spruiten, gelijke hoogte, 16 mm | C100: 10,060,106 | D100: 3.13 | E100: 0.150 | F100: 35% | H100: Install-Tech
A101: dozen | B101: centraaldoos met deksel 8 spruiten, ongelijke hoogte, 16 mm | C101: 10,060,109 | D101: 3.13 | E101: 0.150 | F101: 35% | H101: Install-Tech
A102: dozen | B102: centraaldoos, perfora 16 mm, 55 mm hoog | C102: 10,060,112 | D102: 3.90 | E102: 0.200 | F102: 35% | H102: Install-Tech
A103: dozen | B103: centraaldoos, perfora, 16 mm, 75 mm hoog | C103: 10,060,115 | D103: 4.54 | E103: 0.200 | F103: 35% | H103: Install-Tech
A104: dozen | B104: centraaldoosdeksel | C104: 10,060,118 | D104: 0.74 | E104: 0.000 | F104: 35% | H104: Install-Tech
A105: dozen | B105: inbouwdoos Perilex voor buis Ø 19 mm | C105: 10,060,121 | D105: 3.36 | E105: 0.120 | F105: 35% | H105: Install-Tech
A106: dozen | B106: inbouwdoos U40 voor buis Ø 16 mm | C106: 10,060,124 | D106: 2.15 | E106: 0.120 | F106: 35% | H106: Install-Tech
A107: dozen | B107: inbouwdoos U50 voor buis Ø 16 mm | C107: 10,060,127 | D107: 2.85 | E107: 0.120 | F107: 35% | H107: Install-Tech
A108: dozen | B108: kabeldoos, universeel | C108: 10,060,130 | D108: 6.03 | E108: 0.050 | F108: 35% | H108: Install-Tech
A109: dozen | B109: lasdoos, universeel met deksel (16 mm) | C109: 10,060,133 | D109: 1.83 | E109: 0.100 | F109: 35% | H109: Install-Tech
A110: dozen | B110: T-doos pvc, 16 mm | C110: 10,060,136 | D110: 1.21 | E110: 0.100 | F110: 35% | H110: Install-Tech
A111: dozen | B111: zwakstroomlasdoos, vierkant pvc | C111: 10,060,139 | D111: 1.52 | E111: 0.100 | F111: 35% | H111: Install-Tech
A112: draad en kabel | B112: FLEX YY 2 x 0,5 mm² | C112: 10,070,100 | D112: 0.46 | E112: 0.200 | F112: 35% | H112: Install-Tech
A113: draad en kabel | B113: FLEX YY 2 x 0,75 mm² | C113: =C112+3 -> 10,070,103 | D113: 0.62 | E113: 0.200 | F113: 35% | H113: Install-Tech
A114: draad en kabel | B114: FLEX YY 2 x 1 mm² | C114: 10,070,106 | D114: 0.69 | E114: 0.200 | F114: 35% | H114: Install-Tech
A115: draad en kabel | B115: FLEX YY 2 x 1,5 mm² | C115: 10,070,109 | D115: 1.01 | E115: 0.200 | F115: 35% | H115: Install-Tech
A116: draad en kabel | B116: FLEX YY 3 x 0,5 mm² | C116: 10,070,112 | D116: 0.69 | E116: 0.200 | F116: 35% | H116: Install-Tech
A117: draad en kabel | B117: FLEX YY 3 x 0,75 mm² | C117: 10,070,115 | D117: 0.78 | E117: 0.200 | F117: 35% | H117: Install-Tech
A118: draad en kabel | B118: FLEX YY 3 x 1 mm² | C118: 10,070,118 | D118: 1.04 | E118: 0.200 | F118: 35% | H118: Install-Tech
A119: draad en kabel | B119: FLEX YY 3 x 1,5 mm² | C119: 10,070,121 | D119: 1.28 | E119: 0.200 | F119: 35% | H119: Install-Tech
A120: draad en kabel | B120: FLEX YY 4 x 0,5 mm² | C120: 10,070,124 | D120: 0.86 | E120: 0.200 | F120: 35% | H120: Install-Tech
A121: draad en kabel | B121: FLEX YY 4 x 0,75 mm² | C121: 10,070,127 | D121: 1.03 | E121: 0.200 | F121: 35% | H121: Install-Tech
A122: draad en kabel | B122: FLEX YY 4 x 1 mm² | C122: 10,070,130 | D122: 1.36 | E122: 0.200 | F122: 35% | H122: Install-Tech
A123: draad en kabel | B123: FLEX YY 4 x 1,5 mm² | C123: 10,070,133 | D123: 1.91 | E123: 0.200 | F123: 35% | H123: Install-Tech
A124: draad en kabel | B124: FLEX YY 5 x 0,5 mm² | C124: 10,070,136 | D124: 1.08 | E124: 0.200 | F124: 35% | H124: Install-Tech
A125: draad en kabel | B125: FLEX YY 5 x 0,75 mm² | C125: 10,070,139 | D125: 1.29 | E125: 0.200 | F125: 35% | H125: Install-Tech
A126: draad en kabel | B126: FLEX YY 5 x 1 mm² | C126: 10,070,142 | D126: 1.70 | E126: 0.200 | F126: 35% | H126: Install-Tech
A127: draad en kabel | B127: FLEX YY 5 x 1,5 mm² | C127: 10,070,145 | D127: 2.39 | E127: 0.200 | F127: 35% | H127: Install-Tech
A128: draad en kabel | B128: FLEX YY 6 x 0,75 mm² | C128: 10,070,148 | D128: 1.86 | E128: 0.200 | F128: 35% | H128: Install-Tech
A129: draad en kabel | B129: FLEX YY 6 x 1 mm² | C129: 10,070,151 | D129: 2.33 | E129: 0.200 | F129: 35% | H129: Install-Tech
A130: draad en kabel | B130: H07V-U (VD) 1,5 mm² blauw | C130: 10,070,154 | D130: 0.28 | E130: 0.200 | F130: 35% | H130: Install-Tech
A131: draad en kabel | B131: H07V-U (VD) 1,5 mm² bruin | C131: 10,070,157 | D131: 0.28 | E131: 0.200 | F131: 35% | H131: Install-Tech
A132: draad en kabel | B132: H07V-U (VD) 1,5 mm² geel/groen | C132: 10,070,160 | D132: 0.28 | E132: 0.200 | F132: 35% | H132: Install-Tech
A133: draad en kabel | B133: H07V-U (VD) 1,5 mm² zwart | C133: 10,070,163 | D133: 0.28 | E133: 0.006 | F133: 35% | H133: Install-Tech
A134: draad en kabel | B134: H07V-U (VD) 2,5 mm² blauw | C134: 10,070,166 | D134: 0.44 | E134: 0.006 | F134: 35% | H134: Install-Tech
A135: draad en kabel | B135: H07V-U (VD) 2,5 mm² bruin | C135: 10,070,169 | D135: 0.44 | E135: 0.006 | F135: 35% | H135: Install-Tech
A136: draad en kabel | B136: H07V-U (VD) 2,5 mm² geel/groen | C136: 10,070,172 | D136: 0.44 | E136: 0.006 | F136: 35% | H136: Install-Tech
A137: draad en kabel | B137: H07V-U (VD) 2,5 mm² zwart | C137: 10,070,175 | D137: 0.44 | E137: 0.006 | F137: 35% | H137: Install-Tech
A138: draad en kabel | B138: H07V-U (VD) 4 mm² blauw | C138: 10,070,178 | D138: 1.32 | E138: 0.006 | F138: 35% | H138: Install-Tech
A139: draad en kabel | B139: H07V-U (VD) 4 mm² bruin | C139: 10,070,181 | D139: 1.32 | E139: 0.006 | F139: 35% | H139: Install-Tech
A140: draad en kabel | B140: H07V-U (VD) 4 mm² geel/groen | C140: 10,070,184 | D140: 1.32 | E140: 0.006 | F140: 35% | H140: Install-Tech
A141: draad en kabel | B141: H07V-U (VD) 4 mm² zwart | C141: 10,070,187 | D141: 1.32 | E141: 0.006 | F141: 35% | H141: Install-Tech
A142: draad en kabel | B142: H07V-U (VD) 6 mm² blauw | C142: 10,070,190 | D142: 1.87 | E142: 0.006 | F142: 35% | H142: Install-Tech
A143: draad en kabel | B143: H07V-U (VD) 6 mm² bruin | C143: 10,070,193 | D143: 1.87 | E143: 0.006 | F143: 35% | H143: Install-Tech
A144: draad en kabel | B144: H07V-U (VD) 6 mm² geel/groen | C144: 10,070,196 | D144: 1.87 | E144: 0.006 | F144: 35% | H144: Install-Tech
A145: draad en kabel | B145: H07V-U (VD) 6 mm² zwart | C145: 10,070,199 | D145: 1.87 | E145: 0.006 | F145: 35% | H145: Install-Tech
A146: draad en kabel | B146: montagesnoer H05V-K 0,75 mm² blauw | C146: 10,120,100 | D146: 0.25 | E146: 0.006 | F146: 35% | H146: Install-Tech
A147: draad en kabel | B147: montagesnoer H05V-K 0,75 mm² bruin | C147: =C146+3 -> 10,120,103 | D147: 0.25 | E147: 0.006 | F147: 35% | H147: Install-Tech
A148: draad en kabel | B148: montagesnoer H05V-K 0,75 mm² geel/groen | C148: 10,120,106 | D148: 0.25 | E148: 0.006 | F148: 35% | H148: Install-Tech
A149: draad en kabel | B149: montagesnoer H05V-K 0,75 mm² zwart | C149: 10,120,109 | D149: 0.25 | E149: 0.006 | F149: 35% | H149: Install-Tech
A150: draad en kabel | B150: montagesnoer H05V-K 1 mm² blauw | C150: 10,120,112 | D150: 0.31 | E150: 0.006 | F150: 35% | H150: Install-Tech
A151: draad en kabel | B151: montagesnoer H05V-K 1 mm² bruin | C151: 10,120,115 | D151: 0.31 | E151: 0.006 | F151: 35% | H151: Install-Tech
A152: draad en kabel | B152: montagesnoer H05V-K 1 mm² geel/groen | C152: 10,120,118 | D152: 0.31 | E152: 0.006 | F152: 35% | H152: Install-Tech
A153: draad en kabel | B153: montagesnoer H05V-K 1 mm² rood | C153: 10,120,121 | D153: 0.31 | E153: 0.006 | F153: 35% | H153: Install-Tech
A154: draad en kabel | B154: montagesnoer H05V-K 1 mm² zwart | C154: 10,120,124 | D154: 0.31 | E154: 0.006 | F154: 35% | H154: Install-Tech
A155: draad en kabel | B155: montagesnoer H07V-K 1,5 mm² blauw | C155: 10,120,127 | D155: 0.54 | E155: 0.080 | F155: 35% | H155: Install-Tech
A156: draad en kabel | B156: montagesnoer H07V-K 1,5 mm² bruin | C156: 10,120,130 | D156: 0.54 | E156: 0.080 | F156: 35% | H156: Install-Tech
A157: draad en kabel | B157: montagesnoer H07V-K 1,5 mm² geel/groen | C157: 10,120,133 | D157: 0.54 | E157: 0.080 | F157: 35% | H157: Install-Tech
A158: draad en kabel | B158: montagesnoer H07V-K 1,5 mm² rood | C158: 10,120,136 | D158: 0.54 | E158: 0.080 | F158: 35% | H158: Install-Tech
A159: draad en kabel | B159: montagesnoer H07V-K 1,5 mm² zwart | C159: 10,120,139 | D159: 0.54 | E159: 0.080 | F159: 35% | H159: Install-Tech
A160: draad en kabel | B160: VMvL 2 x 0,75 mm² | C160: 10,220,100 | D160: 0.75 | E160: 0.150 | F160: 35% | H160: Install-Tech
A161: draad en kabel | B161: VMvL 2 x 1 mm² | C161: =C160+3 -> 10,220,103 | D161: 0.90 | E161: 0.150 | F161: 35% | H161: Install-Tech
A162: draad en kabel | B162: VMvL 2 x 1½ mm² | C162: 10,220,106 | D162: 1.23 | E162: 0.150 | F162: 35% | H162: Install-Tech
A163: draad en kabel | B163: VMvL 2 x 2½ mm² | C163: 10,220,109 | D163: 1.99 | E163: 0.150 | F163: 35% | H163: Install-Tech
A164: draad en kabel | B164: VMvL 3 x 0,75 mm² | C164: 10,220,112 | D164: 1.02 | E164: 0.150 | F164: 35% | H164: Install-Tech
A165: draad en kabel | B165: VMvL 3 x 1 mm² | C165: 10,220,115 | D165: 1.26 | E165: 0.150 | F165: 35% | H165: Install-Tech
A166: draad en kabel | B166: VMvL 3 x 1½ mm² | C166: 10,220,118 | D166: 1.74 | E166: 0.150 | F166: 35% | H166: Install-Tech
A167: draad en kabel | B167: VMvL 3 x 2½ mm² | C167: 10,220,121 | D167: 2.75 | E167: 0.150 | F167: 35% | H167: Install-Tech
A168: draad en kabel | B168: VMvL 4 x 1 mm² | C168: 10,220,124 | D168: 1.59 | E168: 0.150 | F168: 35% | H168: Install-Tech
A169: draad en kabel | B169: VMvL 4 x 1½ mm² | C169: 10,220,127 | D169: 2.30 | E169: 0.150 | F169: 35% | H169: Install-Tech
A170: draad en kabel | B170: VMvL 4 x 2½ mm² | C170: 10,220,130 | D170: 3.61 | E170: 0.150 | F170: 35% | H170: Install-Tech
A171: draad en kabel | B171: VMvL 5 x 1½ mm² | C171: 10,220,133 | D171: 2.89 | E171: 0.150 | F171: 35% | H171: Install-Tech
A172: draad en kabel | B172: VMvL 5 x 2½ mm² | C172: 10,220,136 | D172: 4.54 | E172: 0.150 | F172: 35% | H172: Install-Tech
A173: draad en kabel | B173: XMvK 2 x 1,5 mm² | C173: 10,220,139 | D173: 1.16 | E173: 0.200 | F173: 35% | H173: Install-Tech
A174: draad en kabel | B174: XMvK 2 x 2,5 mm² | C174: 10,220,142 | D174: 1.70 | E174: 0.200 | F174: 35% | H174: Install-Tech
A175: draad en kabel | B175: XMvK 3 x 1,5 mm² | C175: 10,220,145 | D175: 1.61 | E175: 0.200 | F175: 35% | H175: Install-Tech
A176: draad en kabel | B176: XMvK 3 x 2,5 mm² | C176: 10,220,148 | D176: 2.37 | E176: 0.200 | F176: 35% | H176: Install-Tech
A177: draad en kabel | B177: XMvK 4 x 1,5 mm² | C177: 10,220,151 | D177: 2.08 | E177: 0.200 | F177: 35% | H177: Install-Tech
A178: draad en kabel | B178: XMvK 4 x 2,5 mm² | C178: 10,220,154 | D178: 3.09 | E178: 0.200 | F178: 35% | H178: Install-Tech
A179: draad en kabel | B179: XMvK 5 x 1,5 mm² | C179: 10,220,157 | D179: 2.57 | E179: 0.200 | F179: 35% | H179: Install-Tech
A180: draad en kabel | B180: XMvK 5 x 2,5 mm² | C180: 10,220,160 | D180: 3.84 | E180: 0.200 | F180: 35% | H180: Install-Tech
A181: draad en kabel | B181: YMvK 2 x 1,5 mm² | C181: 10,220,163 | D181: 1.56 | E181: 0.200 | F181: 35% | H181: Install-Tech
A182: draad en kabel | B182: YMvK 2 x 2,5 mm² | C182: 10,220,166 | D182: 2.18 | E182: 0.200 | F182: 35% | H182: Install-Tech
A183: draad en kabel | B183: YMvK 3 x 1,5 mm² | C183: 10,220,169 | D183: 2.10 | E183: 0.200 | F183: 35% | H183: Install-Tech
A184: draad en kabel | B184: YMvK 3 x 2,5 mm² | C184: 10,220,172 | D184: 3.08 | E184: 0.200 | F184: 35% | H184: Install-Tech
A185: draad en kabel | B185: YMvK 3 x 4 mm² | C185: 10,220,175 | D185: 4.90 | E185: 0.200 | F185: 35% | H185: Install-Tech
A186: draad en kabel | B186: YMvK 3 x 6 mm² | C186: 10,220,178 | D186: 7.12 | E186: 0.200 | F186: 35% | H186: Install-Tech
A187: draad en kabel | B187: YMvK 4 x 1,5 mm² | C187: 10,220,181 | D187: 2.72 | E187: 0.200 | F187: 35% | H187: Install-Tech
A188: draad en kabel | B188: YMvK 4 x 2,5 mm² | C188: 10,220,184 | D188: 3.95 | E188: 0.200 | F188: 35% | H188: Install-Tech
A189: draad en kabel | B189: YMvK 4 x 4 mm² | C189: 10,220,187 | D189: 6.42 | E189: 0.200 | F189: 35% | H189: Install-Tech
A190: draad en kabel | B190: YMvK 4 x 6 mm² | C190: 10,220,190 | D190: 9.26 | E190: 0.200 | F190: 35% | H190: Install-Tech
A191: draad en kabel | B191: YMvK 5 x 1,5 mm² | C191: 10,220,193 | D191: 3.34 | E191: 0.200 | F191: 35% | H191: Install-Tech
A192: draad en kabel | B192: YMvK 5 x 2,5 mm² | C192: 10,220,196 | D192: 4.93 | E192: 0.200 | F192: 35% | H192: Install-Tech
A193: draad en kabel | B193: YMvK 5 x 4 mm² | C193: 10,220,199 | D193: 7.93 | E193: 0.200 | F193: 35% | H193: Install-Tech
A194: draad en kabel | B194: YMvK 5 x 6 mm² | C194: 10,220,202 | D194: 11.45 | E194: 0.200 | F194: 35% | H194: Install-Tech
A195: groepenkast | B195: groepenkast 220 x 110 (leeg) | C195: 10,080,100 | D195: 34.87 | E195: 0.300 | F195: 35% | H195: Install-Tech
A196: groepenkast | B196: groepenkast 220 x 220 (leeg) | C196: 10,080,100 | D196: 41.59 | E196: 0.300 | F196: 35% | H196: Install-Tech
A197: groepenkast | B197: groepenkast 330 x 220 (leeg) | C197: 10,080,100 | D197: 71.65 | E197: 0.300 | F197: 35% | H197: Install-Tech
A198: groepenkast | B198: groepenkast ALS 40 / 0,03 A, 4 x install.aut 16 A + fornuisgroep 16 A | C198: 10,080,100 | D198: 489.35 | E198: 0.350 | F198: 35% | H198: Install-Tech
A199: groepenkast | B199: groepenkast met 1 x aardlekautomaat 16 A / 0,03 A | C199: 10,080,100 | D199: 171.16 | E199: 0.350 | F199: 35% | H199: Install-Tech
A200: groepenkast | B200: groepenkast met 1 x installatieautomaat 16 A | C200: 10,080,100 | D200: 70.46 | E200: 0.350 | F200: 35% | H200: Install-Tech
... 254 more rows
